bitfinex-derivatives/quotes_BTCF0:USTF0_20251229
["timestamp","ask_amount","ask_price","bid_price","bid_amount"]
[1767004759249,0.09672,88007.0,87992.0,0.05704]
[1767004759452,0.0113769,88002.0,87992.0,0.08704]
[1767004759653,0.09672,88007.0,87992.0,0.08704]
[1767004759955,0.0113768,88002.0,87992.0,0.08704]
[1767004760462,0.011377,88000.0,87992.0,0.08704]
[1767004760652,0.011377,88000.0,87992.0,0.05704]
[1767004761560,0.0113768,88002.0,87992.0,0.05704]
[1767004762152,0.0113768,88002.0,87992.0,0.08704]
[1767004762353,0.0113773,87998.0,87992.0,0.08704]
[1767004762662,0.09672,88007.0,87980.0,0.05704]
[1767004762663,0.0113787,87987.0,87980.0,0.05704]
[1767004763258,0.0113771,88000.0,87980.0,0.05704]
[1767004763465,0.0113796,87980.0,87969.0,0.05704]
[1767004763649,0.0113799,87978.0,87969.0,0.05704]
[1767004763853,0.0113799,87978.0,87969.0,0.08704]
[1767004764751,0.0113795,87981.0,87969.0,0.08704]
[1767004765960,0.00017049,87982.0,87969.0,0.08704]
[1767004766265,0.01154989,87982.0,87969.0,0.08704]
[1767004766450,0.00017049,87982.0,87969.0,0.08704]
[1767004767556,0.00017049,87982.0,87969.0,0.0984209]
[1767004769161,0.00017049,87982.0,87971.0,0.0113807]
[1767004769361,0.00017049,87982.0,87971.0,0.0413807]
[1767004769665,4.9e-07,87982.0,87971.0,0.03]
[1767004769852,4.9e-07,87982.0,87977.0,0.0113799]
[1767004770056,4.9e-07,87982.0,87979.0,0.0113797]
[1767004770256,4.9e-07,87982.0,87979.0,0.0413797]
[1767004770457,0.15372,87993.0,87981.0,0.0113794]
[1767004770760,0.0241996,87992.0,87981.0,0.0413794]
[1767004770962,0.15372,87993.0,87981.0,0.03]
[1767004770963,0.0241996,87991.0,87981.0,0.03]
[1767004771165,0.0241996,87990.0,87981.0,0.03]
[1767004771366,0.0241996,87989.0,87981.0,0.03]
[1767004771564,0.0241996,87988.0,87981.0,0.03]
[1767004771868,0.0241996,87987.0,87981.0,0.03]
[1767004772053,0.0113781,87992.0,87981.0,0.03]
[1767004772259,0.02420193,87991.0,87978.0,0.0113798]
[1767004772459,0.02420193,87990.0,87978.0,0.0413798]
[1767004772667,0.02420193,87989.0,87978.0,0.0413798]
[1767004772867,0.02420193,87988.0,87978.0,0.0413798]
[1767004773069,0.02420193,87987.0,87978.0,0.0413798]
[1767004773263,0.0113781,87992.0,87978.0,0.03]
[1767004773459,0.02420039,87991.0,87978.0,0.03]
[1767004773664,0.15372,87993.0,87978.0,0.03]
[1767004774270,0.0113781,87992.0,87978.0,0.03]
[1767004776569,0.0113786,87988.0,87978.0,0.03]
[1767004776965,0.15372,87993.0,87978.0,0.03]
[1767004777460,0.15372,87993.0,87975.0,0.05704]
[1767004777666,0.01138,87977.0,87971.0,0.05704]
[1767004777871,0.01138,87977.0,87968.0,0.15372]
[1767004778369,0.01138,87977.0,87968.0,0.18372]
[1767004778872,0.0113821,87961.0,87948.0,0.06123651]
[1767004779167,0.0113824,87959.0,87950.0,0.11367188]
[1767004779369,0.0113824,87959.0,87950.0,0.12367188]
[1767004779570,0.0113824,87959.0,87950.0,0.01]
[1767004779866,0.0113824,87959.0,87949.0,0.05704]
[1767004780072,0.0113822,87960.0,87949.0,0.05704]
[1767004780267,0.0113832,87952.0,87946.0,0.00017049]
[1767004780471,0.0113832,87952.0,87941.0,0.05704]
[1767004780671,0.09685049,87963.0,87941.0,0.07704]
[1767004780672,0.0113828,87955.0,87941.0,0.07704]
[1767004783568,0.09685049,87963.0,87941.0,0.07704]
[1767004783764,0.0113824,87958.0,87941.0,0.07704]
[1767004783965,0.011383,87954.0,87941.0,0.07704]
[1767004787268,0.011383,87954.0,87941.0,0.05704]
[1767004787475,0.0113826,87957.0,87941.0,0.08704]
[1767004788274,0.0113829,87955.0,87941.0,0.08704]
[1767004791576,0.0113829,87955.0,87941.0,0.05704]
[1767004791777,0.0113829,87955.0,87941.0,0.08704]
[1767004796790,0.0113829,87955.0,87941.0,0.05704]
[1767004797002,0.0113829,87955.0,87941.0,0.08704]
[1767004797795,0.09685049,87963.0,87941.0,0.08704]
[1767004798805,0.0113826,87957.0,87941.0,0.08704]
[1767004799404,0.0113826,87957.0,87941.0,0.05704]
[1767004799605,0.0113826,87957.0,87941.0,0.08704]
[1767004799904,0.0113826,87957.0,87942.0,0.0113845]
[1767004800204,0.0113826,87957.0,87942.0,0.0413845]
[1767004800406,0.0113826,87957.0,87942.0,0.0113845]
[1767004800605,0.0113826,87957.0,87942.0,0.0413845]
[1767004800905,0.0113826,87957.0,87942.0,0.03]
[1767004802504,0.0113829,87955.0,87941.0,0.05704]
[1767004802705,0.0113829,87955.0,87941.0,0.08704]
[1767004804508,0.0113825,87958.0,87941.0,0.0984246]
[1767004805100,0.0113827,87956.0,87941.0,0.0984246]
[1767004806205,0.0113827,87956.0,87941.0,0.0684246]
[1767004806400,0.0113824,87959.0,87941.0,0.0984246]
[1767004806599,0.02447784,87958.0,87941.0,0.0984246]
[1767004806803,0.02447784,87957.0,87941.0,0.0984246]
[1767004807006,0.0113824,87959.0,87941.0,0.0684246]
[1767004807307,0.0113826,87957.0,87941.0,0.0984246]
[1767004807502,0.02447784,87956.0,87941.0,0.0984246]
[1767004808310,0.02447784,87956.0,87943.0,0.0113843]
[1767004808510,0.02447784,87956.0,87943.0,0.0413843]
[1767004809303,0.02447784,87956.0,87945.0,0.0113841]
[1767004809502,0.02447784,87955.0,87945.0,0.0413841]
[1767004809811,0.02447784,87954.0,87945.0,0.0413841]
[1767004810009,0.02447784,87953.0,87945.0,0.03]
[1767004810210,0.02447784,87952.0,87945.0,0.03]
[1767004810413,0.02447784,87951.0,87945.0,0.03]
[1767004810610,0.0113823,87959.0,87945.0,0.03]
[1767004810906,0.02453883,87958.0,87945.0,0.03]
[1767004811112,0.02453883,87957.0,87945.0,0.03]
[1767004811313,0.02453883,87956.0,87945.0,0.03]
[1767004811513,0.02453883,87955.0,87945.0,0.03]
[1767004811713,0.02453883,87954.0,87945.0,0.03]
[1767004811914,0.02453883,87953.0,87945.0,0.03]
[1767004812105,0.02453883,87952.0,87945.0,0.03]
[1767004812304,0.0113823,87959.0,87945.0,0.03]
[1767004812512,0.02453883,87958.0,87945.0,0.03]
[1767004812709,0.02453883,87957.0,87945.0,0.03]
[1767004812912,0.02453883,87956.0,87945.0,0.03]
[1767004813112,0.02453883,87955.0,87945.0,0.03]
[1767004813312,0.02453883,87954.0,87945.0,0.03]
[1767004813509,0.02453883,87953.0,87945.0,0.03]
[1767004813709,0.0113823,87959.0,87945.0,0.03]
[1767004813710,0.02453883,87952.0,87945.0,0.03]
[1767004813918,0.0113823,87959.0,87945.0,0.03]
[1767004814117,0.02453883,87958.0,87945.0,0.03]
[1767004814316,0.02453883,87957.0,87945.0,0.03]
[1767004814615,0.02453883,87956.0,87945.0,0.03]
[1767004814815,0.02453883,87955.0,87945.0,0.0413841]
[1767004815021,0.02453883,87954.0,87945.0,0.0413841]
[1767004815212,0.02453883,87953.0,87945.0,0.0413841]
[1767004815412,0.02453883,87952.0,87945.0,0.0413841]
[1767004815608,0.0113822,87960.0,87945.0,0.03]
[1767004815814,0.0113824,87958.0,87945.0,0.03]
[1767004816017,0.02453882,87957.0,87945.0,0.03]
[1767004816316,0.02453882,87956.0,87945.0,0.03]
[1767004816516,0.02453882,87955.0,87945.0,0.03]
[1767004816816,0.02453882,87954.0,87945.0,0.03]
[1767004817018,0.02453882,87953.0,87945.0,0.03]
[1767004817211,0.02453882,87952.0,87945.0,0.03]
[1767004817412,0.0113824,87958.0,87945.0,0.03]
[1767004817716,0.02453881,87957.0,87945.0,0.03]
[1767004817918,0.02453881,87956.0,87945.0,0.03]
[1767004818116,0.02453881,87955.0,87945.0,0.03]
[1767004818318,0.02453881,87954.0,87945.0,0.03]
[1767004818518,0.02453881,87953.0,87945.0,0.03]
[1767004818720,0.02453881,87952.0,87945.0,0.03]
[1767004819023,0.0113824,87958.0,87945.0,0.03]
[1767004819213,0.0245388,87957.0,87945.0,0.03]
[1767004819510,0.0245388,87956.0,87945.0,0.03]
[1767004819710,0.0245388,87955.0,87945.0,0.03]
[1767004819911,0.0245388,87954.0,87945.0,0.03]
[1767004820112,0.0245388,87953.0,87945.0,0.03]
[1767004820311,0.0245388,87952.0,87945.0,0.03]
[1767004820518,0.0113824,87958.0,87945.0,0.03]
[1767004820719,0.02453876,87957.0,87945.0,0.03]
[1767004821017,0.0113846,87941.0,87932.0,0.05704]
[1767004821219,0.18460358,87950.0,87932.0,0.08704]
[1767004821423,0.0113839,87947.0,87932.0,0.08704]
[1767004821621,0.02453229,87946.0,87932.0,0.08704]
[1767004821919,0.03591639,87945.0,87932.0,0.08704]
[1767004822222,0.02453229,87944.0,87932.0,0.08704]
[1767004822420,0.02453229,87944.0,87932.0,0.03]
[1767004824210,0.02453229,87944.0,87933.0,0.0113857]
[1767004824416,0.00017049,87948.0,87933.0,0.0413857]
[1767004824722,0.02530509,87947.0,87933.0,0.0413857]
[1767004824922,0.02530509,87946.0,87935.0,0.0113854]
[1767004825117,0.02530509,87945.0,87935.0,0.0413854]
[1767004825322,0.00017049,87948.0,87935.0,0.0413854]
[1767004825523,0.02530158,87947.0,87935.0,0.0413854]
[1767004825722,0.02530158,87946.0,87935.0,0.0413854]
[1767004825919,0.02530158,87945.0,87935.0,0.0413854]
[1767004826114,0.01155429,87948.0,87935.0,0.03]
[1767004826320,0.02529918,87947.0,87935.0,0.03]
[1767004826619,0.02529918,87946.0,87935.0,0.03]
[1767004826822,0.02529918,87945.0,87935.0,0.03]
[1767004827022,0.02529918,87944.0,87935.0,0.03]
[1767004827211,0.01155429,87948.0,87935.0,0.03]
[1767004827414,0.02571818,87947.0,87935.0,0.03]
[1767004827614,0.02571818,87946.0,87935.0,0.03]
[1767004827915,0.02571818,87945.0,87935.0,0.03]
[1767004828115,0.0113839,87947.0,87935.0,0.03]
[1767004828315,0.02571658,87946.0,87935.0,0.03]
[1767004828517,0.02571658,87945.0,87935.0,0.03]
[1767004828815,0.00017049,87948.0,87935.0,0.03]
[1767004829015,0.0257161,87947.0,87935.0,0.03]
[1767004829224,0.0257161,87946.0,87935.0,0.03]
[1767004829420,0.0257161,87945.0,87935.0,0.03]
[1767004829620,0.00017049,87948.0,87935.0,0.03]
[1767004829824,0.02571435,87947.0,87935.0,0.03]
[1767004830024,0.02571435,87946.0,87935.0,0.03]
[1767004830322,0.02571435,87945.0,87935.0,0.03]
[1767004830511,0.00017049,87948.0,87935.0,0.03]
[1767004830711,0.02571331,87947.0,87935.0,0.0413854]
[1767004830918,0.02571331,87946.0,87935.0,0.0413854]
[1767004831223,0.02571331,87945.0,87935.0,0.0413854]
[1767004831424,0.02571331,87944.0,87935.0,0.0413854]
[1767004831625,0.00017049,87948.0,87935.0,0.0413854]
[1767004831626,0.0257121,87943.0,87935.0,0.0413854]
[1767004831920,0.00017049,87948.0,87935.0,0.0413854]
[1767004832128,0.0257121,87947.0,87935.0,0.0413854]
[1767004832326,0.0257121,87946.0,87935.0,0.0413854]
[1767004832526,0.0257121,87945.0,87935.0,0.0413854]
[1767004832727,0.0257121,87944.0,87935.0,0.0413854]
[1767004832924,0.0257121,87943.0,87935.0,0.0413854]
[1767004833122,0.00017049,87948.0,87935.0,0.0413854]
[1767004833326,0.02571052,87947.0,87935.0,0.0413854]
[1767004833522,0.02571052,87946.0,87935.0,0.0413854]
[1767004833725,0.02571052,87945.0,87935.0,0.0413854]
[1767004833918,0.02571052,87944.0,87935.0,0.0413854]
[1767004834119,0.02571052,87943.0,87935.0,0.0413854]
[1767004834319,0.00017049,87948.0,87935.0,0.0413854]
[1767004834521,0.02571009,87947.0,87935.0,0.0413854]
[1767004834723,0.02571009,87946.0,87935.0,0.0413854]
[1767004834924,0.02571009,87945.0,87935.0,0.0413854]
[1767004835122,0.02571009,87944.0,87935.0,0.0413854]
[1767004835326,0.02571009,87943.0,87935.0,0.0413854]
[1767004835529,0.00017049,87948.0,87935.0,0.0413854]
[1767004835724,0.02570989,87947.0,87935.0,0.0413854]
[1767004836030,0.02570989,87946.0,87935.0,0.0413854]
[1767004836230,0.02570989,87945.0,87935.0,0.0413854]
[1767004836430,0.02570989,87944.0,87935.0,0.0413854]
[1767004836628,0.02570989,87943.0,87935.0,0.0413854]
[1767004836829,0.01155419,87948.0,87935.0,0.0413854]
[1767004837128,0.02570993,87947.0,87935.0,0.0413854]
[1767004837332,0.02570993,87946.0,87935.0,0.0413854]
[1767004837517,0.02570993,87945.0,87935.0,0.0413854]
[1767004837721,0.02570993,87944.0,87935.0,0.0413854]
[1767004837921,0.02570993,87943.0,87935.0,0.0413854]
[1767004838129,0.01155419,87948.0,87935.0,0.0413854]
[1767004838326,0.011384,87946.0,87935.0,0.03]
[1767004838528,0.02571043,87945.0,87935.0,0.03]
[1767004839634,0.02571043,87944.0,87935.0,0.0413853]
[1767004839930,0.02571043,87943.0,87935.0,0.0413853]
[1767004840133,0.00017049,87948.0,87935.0,0.0413853]
[1767004840428,0.02571238,87947.0,87935.0,0.0413853]
[1767004840732,0.02571238,87946.0,87935.0,0.0413853]
[1767004840925,0.02571238,87945.0,87935.0,0.0413853]
[1767004841125,0.02571238,87944.0,87935.0,0.0413853]
[1767004841326,0.02571238,87943.0,87935.0,0.0413853]
[1767004841633,0.0113839,87947.0,87935.0,0.03]
[1767004841824,0.02571371,87946.0,87935.0,0.03]
[1767004842025,0.02571371,87945.0,87935.0,0.03]
[1767004842332,0.02571371,87944.0,87935.0,0.03]
[1767004842534,0.02571371,87943.0,87935.0,0.03]
[1767004842733,0.0113839,87947.0,87935.0,0.03]
[1767004842921,0.02571524,87946.0,87935.0,0.03]
[1767004843124,0.02571524,87945.0,87935.0,0.03]
[1767004843334,0.02571524,87944.0,87935.0,0.03]
[1767004843634,0.02571524,87943.0,87935.0,0.03]
[1767004843834,0.00017049,87948.0,87935.0,0.03]
[1767004844132,0.0257171,87947.0,87935.0,0.03]
[1767004844326,0.0257171,87946.0,87935.0,0.03]
[1767004844522,0.0257171,87945.0,87935.0,0.03]
[1767004844725,0.0257171,87944.0,87935.0,0.03]
[1767004844926,0.0257171,87943.0,87935.0,0.03]
[1767004845130,0.0257171,87942.0,87935.0,0.03]
[1767004845327,0.00017049,87948.0,87935.0,0.03]
[1767004845637,0.02572207,87947.0,87935.0,0.03]
[1767004845832,0.03710607,87946.0,87935.0,0.03]
[1767004846133,0.02572207,87945.0,87935.0,0.03]
[1767004846332,0.02572207,87944.0,87935.0,0.03]
[1767004846533,0.02572207,87943.0,87935.0,0.03]
[1767004846735,0.02572207,87942.0,87935.0,0.03]
[1767004846936,0.011384,87946.0,87935.0,0.03]
[1767004847232,0.02572522,87945.0,87935.0,0.03]
[1767004847432,0.02572522,87944.0,87935.0,0.03]
[1767004847639,0.02572522,87943.0,87935.0,0.03]
[1767004847832,0.02572522,87942.0,87935.0,0.03]
[1767004848031,0.02572522,87941.0,87935.0,0.03]
[1767004848232,0.00017049,87948.0,87935.0,0.03]
[1767004849338,0.0113839,87947.0,87935.0,0.03]
[1767004849532,0.11835783,87957.0,87936.0,0.05704]
[1767004849734,0.11835783,87957.0,87936.0,0.0984252]
[1767004849735,0.15376,87957.0,87936.0,0.0984252]
[1767004849931,0.0113835,87950.0,87936.0,0.08704]
[1767004850130,0.0113831,87953.0,87937.0,0.0113851]
[1767004850328,0.0113831,87953.0,87937.0,0.0413851]
[1767004851040,0.0113834,87951.0,87937.0,0.03]
[1767004855738,0.0113833,87952.0,87937.0,0.03]
[1767004856840,0.0113835,87950.0,87937.0,0.03]
[1767004857042,0.011384,87946.0,87937.0,0.03]
[1767004857346,0.0113837,87949.0,87937.0,0.03]
[1767004860147,0.02559271,87948.0,87937.0,0.03]
[1767004860351,0.0113845,87942.0,87930.0,0.00017049]
[1767004860655,0.02559271,87941.0,87934.0,0.05704]
[1767004860852,0.02559271,87940.0,87934.0,0.05704]
[1767004861042,0.02559271,87939.0,87934.0,0.05704]
[1767004861351,0.0113845,87942.0,87934.0,0.08704]
[1767004861648,0.02559341,87941.0,87934.0,0.03]
[1767004861849,0.02559341,87940.0,87934.0,0.03]
[1767004862044,0.0113845,87942.0,87931.0,0.05704]
[1767004862236,0.02559338,87941.0,87931.0,0.05704]
[1767004862441,0.02559338,87940.0,87931.0,0.05704]
[1767004862646,0.0113845,87942.0,87931.0,0.08704]
[1767004862853,0.02559325,87941.0,87931.0,0.08704]
[1767004863151,0.02559325,87940.0,87931.0,0.08704]
[1767004863451,0.0113845,87942.0,87931.0,0.08704]
[1767004863651,0.0255931,87941.0,87931.0,0.08704]
[1767004863955,0.0369779,87940.0,87931.0,0.08704]
[1767004864147,0.0113848,87940.0,87931.0,0.08704]
[1767004865452,0.0113848,87940.0,87926.0,0.05704]
[1767004865653,0.02559282,87939.0,87926.0,0.08704]
[1767004865953,0.0113844,87943.0,87926.0,0.08704]
[1767004866153,0.02559296,87942.0,87926.0,0.08704]
[1767004866343,0.02559296,87941.0,87926.0,0.08704]
[1767004866545,0.02559296,87940.0,87926.0,0.08704]
[1767004866754,0.02559296,87939.0,87927.0,0.0113864]
[1767004866954,0.0113843,87944.0,87927.0,0.0413864]
[1767004867152,0.02559257,87943.0,87927.0,0.0413864]
[1767004867346,0.03697717,87942.0,87927.0,0.03]
[1767004867547,0.02559257,87941.0,87927.0,0.03]
[1767004867748,0.02559257,87940.0,87927.0,0.03]
[1767004867950,0.02559257,87939.0,87927.0,0.03]
[1767004868159,0.0113846,87942.0,87927.0,0.03]
[1767004868455,0.02559206,87941.0,87927.0,0.03]
[1767004868655,0.0113846,87942.0,87927.0,0.03]
[1767004868656,0.02559206,87940.0,87927.0,0.03]
[1767004868859,0.08263206,87939.0,87927.0,0.03]
[1767004869158,0.03697716,87938.0,87927.0,0.03]
[1767004869346,2.42e-06,87937.0,87927.0,0.0413864]
[1767004869543,0.05704,87942.0,87927.0,0.0413864]
[1767004869949,0.06148832,87954.0,87927.0,0.0413864]
[1767004870151,0.0113846,87942.0,87927.0,0.0413864]
[1767004870352,0.05704,87943.0,87927.0,0.0113864]
[1767004870661,0.05704,87943.0,87927.0,0.0413864]
[1767004871361,0.0113847,87941.0,87927.0,0.03]
[1767004872362,0.15376,87943.0,87928.0,0.0113863]
[1767004872561,0.15376,87943.0,87928.0,0.0413863]
[1767004872856,0.15376,87943.0,87925.0,0.00017049]
[1767004873053,0.0113849,87940.0,87925.0,0.03017049]
[1767004873251,0.1651444,87943.0,87925.0,0.03017049]
[1767004873963,0.1651444,87943.0,87926.0,0.0113865]
[1767004874162,0.1651444,87943.0,87926.0,0.0413865]
[1767004874865,0.1651444,87943.0,87928.0,0.0113863]
[1767004875060,0.1651444,87943.0,87928.0,0.0413863]
[1767004875769,0.15376,87943.0,87931.0,0.0113859]
[1767004875961,0.15376,87943.0,87931.0,0.0413859]
[1767004877760,0.05704,87944.0,87931.0,0.0413858]
[1767004878365,0.05704,87944.0,87933.0,0.0113856]
[1767004878565,0.05704,87944.0,87933.0,0.0413856]
[1767004881159,0.05704,87949.0,87938.0,0.0113849]
[1767004881463,0.02545233,87948.0,87938.0,0.0413849]
[1767004881659,0.02545233,87947.0,87938.0,0.0413849]
[1767004881859,0.02545233,87946.0,87938.0,0.0413849]
[1767004882065,0.02545233,87945.0,87938.0,0.03]
[1767004882264,0.02545233,87944.0,87938.0,0.03]
[1767004882459,0.02545233,87943.0,87938.0,0.03]
[1767004882766,0.02545233,87942.0,87938.0,0.03]
[1767004882969,0.02545233,87941.0,87938.0,0.03]
[1767004883265,0.05704,87949.0,87938.0,0.03]
[1767004884161,0.0113837,87948.0,87938.0,0.03]
[1767004884367,0.0113844,87943.0,87938.0,0.01]
[1767004884862,0.0113844,87943.0,87925.0,0.00017049]
[1767004885062,0.0113844,87943.0,87926.0,0.15376]
[1767004885267,0.0113844,87943.0,87927.0,0.0113863]
[1767004885467,0.0113844,87943.0,87927.0,0.0413863]
[1767004885664,0.0113847,87941.0,87925.0,0.00017049]
[1767004885864,0.0113847,87941.0,87925.0,0.03017049]
[1767004886256,0.0113847,87941.0,87926.0,0.0113865]
[1767004886470,0.0113847,87941.0,87926.0,0.0413865]
[1767004887966,0.0113847,87941.0,87926.0,0.03]
[1767004889871,0.15376,87942.0,87929.0,0.0113862]
[1767004890069,0.15376,87942.0,87929.0,0.0413862]
[1767004890574,0.15376,87942.0,87929.0,0.03]
[1767004891068,0.15376,87942.0,87925.0,0.00017049]
[1767004891274,0.15376,87942.0,87925.0,0.03017049]
[1767004892475,0.011385,87939.0,87925.0,0.03017049]
[1767004893267,0.1651446,87942.0,87925.0,0.04155719]
[1767004894075,0.0113848,87940.0,87925.0,0.04155719]
[1767004894570,0.15376,87942.0,87925.0,0.04155719]
[1767004895278,0.03647369,87941.0,87925.0,0.04155719]
[1767004895474,0.02508909,87940.0,87925.0,0.04155719]
[1767004897979,0.02508909,87940.0,87927.0,0.0113863]
[1767004898183,0.15376,87942.0,87927.0,0.0113863]
[1767004898184,0.02508909,87939.0,87927.0,0.0413863]
[1767004898378,0.02508909,87938.0,87927.0,0.0413863]
[1767004898675,0.02508909,87937.0,87927.0,0.0413863]
[1767004898877,0.02508909,87936.0,87927.0,0.0413863]
[1767004899080,0.02508909,87935.0,87927.0,0.0413863]
[1767004899288,0.15376,87942.0,87929.0,0.0113861]
[1767004899479,0.02508904,87941.0,87929.0,0.0113861]
[1767004899780,0.02508904,87940.0,87929.0,0.03]
[1767004899982,0.02508904,87939.0,87929.0,0.03]
[1767004900185,0.02508904,87938.0,87929.0,0.03]
[1767004900378,0.02508904,87937.0,87929.0,0.03]
[1767004900578,0.02508904,87936.0,87929.0,0.03]
[1767004900778,0.02508904,87935.0,87929.0,0.03]
[1767004900980,0.0113846,87941.0,87929.0,0.03]
[1767004901279,0.02508873,87940.0,87929.0,0.03]
[1767004901585,0.02508873,87939.0,87929.0,0.03]
[1767004901788,0.02508873,87938.0,87926.0,0.0113865]
[1767004902086,0.02508873,87937.0,87926.0,0.0413865]
[1767004902274,0.02508873,87936.0,87926.0,0.0413865]
[1767004902576,0.02508873,87935.0,87926.0,0.0413865]
[1767004902772,0.0113846,87941.0,87926.0,0.0413865]
[1767004902972,0.02508792,87940.0,87926.0,0.0413865]
[1767004903188,0.02508792,87939.0,87926.0,0.0413865]
[1767004903384,0.02508792,87938.0,87928.0,0.0113863]
[1767004903581,0.02508792,87937.0,87928.0,0.0413863]
[1767004903886,0.02508792,87936.0,87928.0,0.0413863]
[1767004904087,0.15376,87942.0,87928.0,0.0413863]
[1767004904688,0.15376,87942.0,87928.0,0.0113863]
[1767004904989,0.15376,87942.0,87928.0,0.0413863]
[1767004905388,0.15376,87942.0,87930.0,0.011386]
[1767004905589,0.15376,87942.0,87930.0,0.041386]
[1767004905891,0.1651445,87942.0,87927.0,0.0113864]
[1767004906082,0.1651445,87942.0,87927.0,0.0413864]
[1767004909296,0.0113848,87940.0,87927.0,0.0413864]
[1767004909598,0.15376,87942.0,87927.0,0.0413864]
[1767004910698,0.0113846,87941.0,87927.0,0.0413864]
[1767004911694,0.15376,87942.0,87929.0,0.0113861]
[1767004911885,0.15376,87942.0,87929.0,0.0413861]
[1767004912091,0.15376,87942.0,87929.0,0.03]
[1767004912900,0.1651445,87942.0,87929.0,0.03]
[1767004913099,0.1651445,87942.0,87929.0,0.0413862]
[1767004914191,0.1651445,87942.0,87929.0,0.03]
[1767004916102,0.02496931,87941.0,87926.0,0.0113865]
[1767004916303,0.03635411,87940.0,87926.0,0.0413865]
[1767004916602,0.02496931,87939.0,87926.0,0.0413865]
[1767004918702,0.02496931,87938.0,87928.0,0.0113863]
[1767004918895,0.02496931,87937.0,87928.0,0.0413863]
[1767004919094,0.02496931,87936.0,87928.0,0.0413863]
[1767004919295,0.02496931,87935.0,87928.0,0.0413863]
[1767004919604,0.0820319,87934.0,87917.0,0.05]
[1767004919903,0.011386,87931.0,87917.0,0.05]
[1767004920203,0.0113862,87929.0,87917.0,0.08]
[1767004920392,0.05704,87930.0,87917.0,0.08]
[1767004920998,0.0249908,87929.0,87918.0,0.0113876]
[1767004921198,0.0249908,87928.0,87918.0,0.0413876]
[1767004921399,0.05704,87930.0,87917.0,0.05]
[1767004921594,0.02498418,87929.0,87917.0,0.08]
[1767004921801,0.05704,87930.0,87917.0,0.0913877]
[1767004922000,0.02498418,87929.0,87917.0,0.08]
[1767004922204,0.0684261,87930.0,87917.0,0.08]
[1767004922397,0.02498041,87929.0,87917.0,0.08]
[1767004922602,0.0113864,87928.0,87917.0,0.08]
[1767004922802,0.05704,87930.0,87917.0,0.08]
[1767004923100,0.02497728,87929.0,87917.0,0.05]
[1767004923294,0.0113862,87929.0,87917.0,0.08]
[1767004923904,0.05704,87930.0,87918.0,0.0113876]
[1767004924090,0.02495629,87929.0,87917.0,0.05]
[1767004924295,0.0684261,87930.0,87917.0,0.08]
[1767004925296,0.0684261,87930.0,87917.0,0.0913877]
[1767004925297,0.05704,87930.0,87917.0,0.0913877]
[1767004926701,0.05704,87930.0,87919.0,0.0113874]
[1767004926892,0.01155639,87932.0,87919.0,0.03]
[1767004927098,0.08197091,87931.0,87919.0,0.03]
[1767004927302,0.05704,87934.0,87926.0,0.0113865]
[1767004927503,0.9676,87974.0,87926.0,0.0113865]
[1767004927504,0.05704,87936.0,87926.0,0.0413865]
[1767004929205,0.00017059,87940.0,87926.0,0.0413865]
[1767004929400,0.05704,87939.0,87926.0,0.0413865]
[1767004930401,0.05704,87939.0,87928.0,0.0113862]
[1767004930702,0.05704,87939.0,87928.0,0.03]
[1767004932103,0.05704,87938.0,87928.0,0.03]
[1767004933605,0.05704,87938.0,87929.0,0.0113862]
[1767004933910,0.05704,87937.0,87929.0,0.0413862]
[1767004934107,0.05704,87938.0,87929.0,0.0413862]
[1767004934503,0.05704,87938.0,87925.0,0.0113866]
[1767004934711,0.05704,87938.0,87925.0,0.0413866]
[1767004934906,0.05704,87938.0,87925.0,0.0113866]
[1767004935111,0.05704,87938.0,87925.0,0.0413866]
[1767004935301,0.18487514,87940.0,87925.0,0.0413866]
[1767004939113,0.18487514,87940.0,87925.0,0.0113866]
[1767004939415,0.02479514,87939.0,87925.0,0.0413866]
[1767004939613,0.08183514,87938.0,87925.0,0.0413866]
[1767004939814,0.02479514,87937.0,87925.0,0.03]
[1767004940114,0.02479514,87936.0,87925.0,0.03]
[1767004940310,0.02479514,87935.0,87925.0,0.03]
[1767004940506,0.02479514,87934.0,87925.0,0.0413866]
[1767004940711,0.02479514,87933.0,87925.0,0.0413866]
[1767004940907,0.05704,87938.0,87925.0,0.0413866]
[1767004941107,0.02479581,87937.0,87925.0,0.0413866]
[1767004941309,0.02479581,87936.0,87925.0,0.0413866]
[1767004941510,0.02479581,87935.0,87925.0,0.0413866]
[1767004941709,0.02479581,87934.0,87925.0,0.0413866]
[1767004941916,0.02479581,87933.0,87925.0,0.0413866]
[1767004942108,0.02479581,87932.0,87925.0,0.0113866]
[1767004942309,0.05704,87938.0,87922.0,0.01155759]
[1767004942518,0.02480005,87937.0,87924.0,0.0113868]
[1767004942717,0.02480005,87936.0,87924.0,0.0413868]
[1767004942908,0.02480005,87935.0,87924.0,0.0413868]
[1767004943223,0.02480005,87934.0,87924.0,0.0413868]
[1767004943408,0.02480005,87933.0,87924.0,0.0113868]
[1767004943608,0.02480005,87932.0,87924.0,0.0413868]
[1767004943808,0.05704,87938.0,87926.0,0.0113865]
[1767004944013,0.02479402,87937.0,87926.0,0.0413865]
[1767004944314,0.02479402,87936.0,87926.0,0.0413865]
[1767004944618,0.05704,87938.0,87928.0,0.0113863]
[1767004944619,0.02479402,87935.0,87928.0,0.0113863]
[1767004944810,0.02479402,87934.0,87928.0,0.0413863]
[1767004945010,0.02479402,87933.0,87928.0,0.0413863]
[1767004945208,0.02479402,87932.0,87928.0,0.0413863]
[1767004945409,0.05704,87938.0,87928.0,0.0413863]
[1767004945615,0.02479496,87937.0,87928.0,0.03]
[1767004945816,0.02479496,87936.0,87928.0,0.03]
[1767004946114,0.02479496,87935.0,87928.0,0.03]
[1767004946417,0.02479496,87934.0,87928.0,0.03]
[1767004946718,0.05704,87938.0,87928.0,0.03]
[1767004946719,0.02479496,87933.0,87928.0,0.03]
[1767004947015,0.02479496,87932.0,87928.0,0.03]
[1767004947216,0.05704,87938.0,87928.0,0.03]
[1767004947420,0.02458539,87937.0,87928.0,0.03]
[1767004947617,0.02458539,87936.0,87928.0,0.03]
[1767004947818,0.02458539,87935.0,87928.0,0.03]
[1767004948018,0.02458539,87934.0,87928.0,0.03]
[1767004948314,0.02458539,87933.0,87928.0,0.03]
[1767004948518,0.02458539,87932.0,87928.0,0.03]